fUSD/lending_fUSD_20240212
["ID","MTS","AMOUNT","RATE_DAILY","PERIOD"]
[313849011,1707752717926,-2156.79407151,0.00023067,2]
[313849012,1707752717950,-2359.0,0.00023067,2]
[313849013,1707752717973,-721.05,0.00023068,2]
[313849014,1707752718000,-500.0,0.00023069,2]
[313849015,1707752718025,-493.83204814,0.00023069,2]
[313849016,1707752718055,-500.0,0.00023069,2]
[313849017,1707752718080,-242.28368973,0.00023069,2]
[313849018,1707752718105,-500.0,0.00023069,2]
[313849019,1707752718129,-370.24,0.00023069,2]
[313849020,1707752718153,-500.0,0.00023069,2]
[313849021,1707752718177,-500.0,0.00023069,2]
[313849022,1707752718200,-535.44998884,0.00023069,2]
[313849023,1707752718224,-500.0,0.00023069,2]
[313849024,1707752718248,-158.85059765,0.00023069,2]
[313849025,1707752718271,-500.0,0.00023069,2]
[313849026,1707752718295,-500.0,0.00023069,2]
[313849027,1707752718318,-347.02891251,0.00023069,2]
[313849028,1707752718341,-500.0,0.00023069,2]
[313849029,1707752718363,-500.0,0.00023069,2]
[313849030,1707752718386,-250.0,0.00023069,2]
[313849031,1707752718410,-299.33771753,0.00023069,2]
[313849032,1707752718444,-165.90808059,0.00023069,2]
[313849033,1707752718473,-500.0,0.00023069,2]
[313849034,1707752718499,-268.91332971,0.00023069,2]
[313849035,1707752718523,-500.0,0.00023069,2]
[313849036,1707752718550,-500.0,0.00023069,2]
[313849037,1707752718574,-500.0,0.00023069,2]
[313849038,1707752718600,-372.33104666,0.00023069,2]
[313849039,1707752731129,150.39,0.00022079,2]
[313849040,1707752742482,-127.66895334,0.00023069,2]
[313849041,1707752742508,-176.46609153,0.00023069,2]
[313849042,1707752742534,-448.40454306,0.00023069,2]
[313849043,1707752742558,-242.25,0.00023069,2]
[313849044,1707752742582,-500.0,0.00023069,2]
[313849045,1707752742608,-527.44,0.00023069,2]
[313849046,1707752742632,-500.0,0.00023069,2]
[313849814,1707752960324,258.21,0.00023,2]
[313849816,1707752972586,162.41394199,0.00022967,2]
[313849857,1707753031871,-570.96022738,0.00023067,2]
[313849858,1707753031884,-372.63960663,0.00023067,2]
[313849860,1707753031896,-3924.29272387,0.00023067,2]
[313849862,1707753031906,-1049.88627765,0.00023067,2]
[313849864,1707753031918,-872.80976592,0.00023067,2]
[313849865,1707753031927,-3504.81393024,0.00023068,2]
[313849867,1707753031936,-2748.13861533,0.00023069,2]
[313849869,1707753031946,-500.0,0.00023069,2]
[313849870,1707753031956,-723.52,0.00023069,2]
[313849872,1707753031964,-155.0,0.00023171,2]
[313849873,1707753031973,-500.0,0.00023172,2]
[313849875,1707753031982,-1000.0,0.000233,2]
[313849877,1707753031992,-527.44,0.00023343,2]
[313849878,1707753032001,-500.0,0.00023343,2]
[313849880,1707753032012,-444.69,0.00023343,2]
[313849882,1707753032021,-504.99637238,0.00023446,2]
[313849883,1707753032030,-499.99,0.00023446,2]
[313849885,1707753032040,-151.4096162,0.00023617,2]
[313849889,1707753032090,-376.0303838,0.00023617,2]
[313849890,1707753032100,-500.0,0.00023617,2]
[313849891,1707753032110,-355.6,0.00023617,2]
[313849892,1707753032120,-196.8,0.00023813,2]
[313849893,1707753032129,-58.00701394,0.00023822,2]
[313849895,1707753032141,-300.0,0.00023822,2]
[313849899,1707753032165,-141.99298606,0.00023822,2]
[313849901,1707753032174,-1392.6848973,0.00023891,3]
[313849903,1707753032183,-527.44,0.00023891,2]
[313849905,1707753032192,-500.0,0.00023891,2]
[313849907,1707753032201,-168.51,0.00023892,2]
[313849908,1707753032211,-155.3,0.00023943,2]
[313849909,1707753032220,-220.86,0.00023983,2]
[313849910,1707753032229,-803.2,0.00023995,2]
[313849913,1707753032238,-1046.33966989,0.00024164,2]
[313849916,1707753032248,-527.44,0.00024165,2]
[313849919,1707753032257,-531.0510651,0.00024165,2]
[313849922,1707753032266,-3137.22,0.00024384,2]
[313849925,1707753032275,-1728.05,0.00024384,2]
[313849928,1707753032284,-527.44,0.00024439,2]
[313849931,1707753032293,-12261.2085,0.00024627,2]
[313849934,1707753032303,-250.0,0.00024658,2]
[313849937,1707753032312,-527.44,0.00024713,2]
[313849940,1707753032321,-517.78567072,0.00024723,2]
[313849942,1707753032330,-202.03248539,0.00024724,2]
[313849944,1707753032339,-402.67523113,0.00024725,2]
[313849946,1707753032348,-11810.48167495,0.00024725,2]
[313849948,1707753032357,-623.68545473,0.00024725,2]
[313849950,1707753032366,-775.53574364,0.00024725,2]
[313849952,1707753032375,-577.38591441,0.00024725,2]
[313849954,1707753032384,-3651.70195557,0.00024725,5]
[313849956,1707753032393,-952.0,0.00024727,2]
[313849958,1707753032402,-707.0,0.00024727,2]
[313849960,1707753032411,-1253.0,0.00024727,2]
[313849962,1707753032421,-1231.0,0.00024727,2]
[313849964,1707753032429,-216.0,0.00024727,2]
[313849966,1707753032438,-429.0,0.00024727,2]
[313849968,1707753032447,-1138.0,0.00024727,2]
[313849970,1707753032457,-859.0,0.00024727,2]
[313849972,1707753032466,-207.53875111,0.00024727,2]
[313849975,1707753032478,-113.46124889,0.00024727,2]
[313849977,1707753032488,-150.0,0.00024727,2]
[313849979,1707753032498,-291.071,0.00024727,2]
[313849981,1707753032509,-842.432,0.00024727,2]
[313849983,1707753032518,-109.90014494,0.00024727,2]
[313849985,1707753032530,-1051.43869208,0.00024727,2]
[313849988,1707753032541,-1274.2434,0.00024727,2]
[313850019,1707753032839,-6640.9694223,0.00024727,2]
[313850022,1707753032853,-2182.73877675,0.00024727,2]
[313850024,1707753032865,-277.93905889,0.00024727,2]
[313850027,1707753032878,-4471.84862828,0.00024727,2]
[313850029,1707753032894,-659.11555549,0.00024727,2]
[313850032,1707753032906,-3158.80632127,0.00024727,2]
[313850034,1707753032915,-4206.0,0.00024727,2]
[313850036,1707753032924,-527.44,0.00024987,2]
[313850038,1707753032933,-210.0,0.0002499,2]
[313850040,1707753032943,-2000.0,0.0002499,3]
[313850042,1707753032952,-7271.1712,0.0002499,2]
[313850044,1707753032962,-206.0,0.00024995,2]
[313850046,1707753032971,-1250.0,0.00025,3]
[313850048,1707753032981,-150.0,0.00025086,2]
[313850050,1707753032991,-150.0,0.00025089,2]
[313850052,1707753033000,-150.0,0.00025093,2]
[313850054,1707753033009,-362.22004699,0.00025097,2]
[313850056,1707753033019,-150.0,0.000251,2]
[313850058,1707753033028,-150.0,0.00025102,2]
[313850061,1707753033041,-150.0,0.00025103,2]
[313850063,1707753033050,-150.0,0.00025104,2]
[313850065,1707753033060,-150.0,0.00025104,2]
[313850067,1707753033069,-150.0,0.00025111,2]
[313850069,1707753033079,-150.0,0.00025111,2]
[313850071,1707753033089,-150.0,0.00025119,2]
[313850073,1707753033098,-150.0,0.00025121,2]
[313850075,1707753033107,-150.0,0.00025122,2]
[313850077,1707753033117,-150.0,0.00025124,2]
[313850079,1707753033126,-150.0,0.00025125,2]
[313850081,1707753033135,-300.0,0.00025127,2]
[313850083,1707753033145,-150.0,0.00025128,2]
[313850085,1707753033154,-150.0,0.00025138,2]
[313850087,1707753033163,-150.0,0.00025142,2]
[313850089,1707753033173,-150.0,0.00025144,2]
[313850091,1707753033182,-150.0,0.00025148,2]
[313850093,1707753033192,-150.39,0.00025152,2]
[313850095,1707753033201,-4841.8871438,0.00025161,2]
[313850097,1707753033210,-191.492,0.00025161,2]
[313850099,1707753033220,-300.0,0.00025192,2]
[313850101,1707753033229,-1500.0,0.00025201,2]
[313850103,1707753033239,-150.0,0.00025203,2]
[313850106,1707753033249,-219.27094688,0.00025206,2]
[313850108,1707753033260,-150.0,0.00025206,2]
[313850110,1707753033271,-150.0,0.00025208,2]
[313850112,1707753033280,-1500.0,0.0002521,2]
[313850114,1707753033290,-150.0,0.00025212,2]
[313850116,1707753033300,-150.0,0.00025213,2]
[313850118,1707753033312,-150.0,0.00025214,2]
[313850120,1707753033322,-150.0,0.00025221,2]
[313850122,1707753033331,-150.0,0.00025225,2]
[313850124,1707753033341,-150.0,0.00025229,2]
[313850126,1707753033350,-150.0,0.00025229,2]
[313850128,1707753033360,-150.0,0.00025235,2]
[313850130,1707753033369,-150.0,0.00025246,2]
[313850132,1707753033378,-150.0,0.00025253,2]
[313850135,1707753033388,-261.03906206,0.00025256,2]
[313850136,1707753033398,-1420.683279,0.00025259,5]
[313850139,1707753033412,-1137.75498811,0.00025259,5]
[313850141,1707753033421,-248.42994519,0.00025259,2]
[313850143,1707753033433,-2097.41534152,0.00025259,2]
[313850144,1707753033445,-1472.97,0.00025259,2]
[313850145,1707753033457,-2182.18,0.00025259,2]
[313850166,1707753037952,-1036.0,0.00024727,2]
[313850168,1707753037963,-249.927,0.00024727,2]
[313850170,1707753037973,-200.073,0.00024727,2]
[313850172,1707753037982,-8525.7953208,0.00025259,2]
[313850174,1707753037994,-5127.41919215,0.00025259,2]
[313850178,1707753038021,-7501.76580034,0.00025259,2]
[313850180,1707753038030,-527.44,0.00025261,2]
[313850182,1707753038039,-500.0,0.00025261,2]
[313850184,1707753038048,-500.0,0.00025261,2]
[313850186,1707753038057,-500.0,0.00025261,2]
[313850188,1707753038066,-500.0,0.00025261,2]
[313850190,1707753038075,-500.0,0.00025261,2]
[313850191,1707753038085,-500.0,0.00025261,2]
[313850194,1707753038094,-1025.13,0.00025261,2]
[313850195,1707753038104,-500.0,0.00025261,2]
[313850197,1707753038113,-540.32,0.00025261,2]
[313850198,1707753038123,-836.01,0.00025261,2]
[313850199,1707753038132,-500.0,0.00025261,2]
[313850200,1707753038141,-701.7,0.00025261,2]
[313850201,1707753038150,-500.0,0.00025261,2]
[313850202,1707753038159,-500.0,0.00025261,2]
[313850203,1707753038168,-501.3629,0.00025262,2]
[313850204,1707753038177,-150.0,0.00025262,2]
[313850205,1707753038187,-150.0,0.00025263,2]
[313850206,1707753038197,-2565.660511,0.00025263,2]
[313850207,1707753038519,-4610.075489,0.00025263,2]
[313850208,1707753038528,-150.0,0.00025266,2]
[313850209,1707753038538,-170.29948086,0.00025267,2]
[313850210,1707753038547,-1906.2116,0.00025268,2]
[313850211,1707753038557,-150.0,0.0002527,2]
[313850212,1707753038566,-150.0,0.00025273,2]
[313850213,1707753038575,-150.0,0.00025283,2]
[313850214,1707753038588,-150.0,0.00025293,2]
[313850215,1707753038597,-150.0,0.000253,2]
[313850216,1707753038607,-150.0,0.00025301,2]
[313850217,1707753038617,-150.0,0.00025302,2]
[313850218,1707753038627,-150.0,0.0002531,2]
[313850219,1707753038637,-150.0,0.00025313,2]
[313850220,1707753038646,-150.0,0.00025313,2]
[313850221,1707753038656,-150.0,0.00025321,2]
[313850222,1707753038665,-150.0,0.00025326,2]
[313850223,1707753038677,-150.0,0.00025329,2]
[313850224,1707753038686,-150.0,0.00025329,2]
[313850225,1707753038696,-150.0,0.00025332,2]
[313850226,1707753038708,-150.0,0.00025333,2]
[313850227,1707753038718,-150.0,0.00025335,2]
[313850228,1707753038727,-150.0,0.00025341,2]
[313850229,1707753038736,-150.0,0.00025341,2]
[313850230,1707753038746,-150.0,0.00025358,2]
[313850231,1707753038755,-500.0,0.00025359,2]
[313850232,1707753038767,-500.0,0.00025359,2]
[313850233,1707753038778,-500.0,0.00025359,2]
[313850234,1707753038787,-500.0,0.00025359,2]
[313850235,1707753038796,-500.0,0.00025359,2]
[313850236,1707753038806,-500.0,0.00025359,2]
[313850237,1707753038815,-500.0,0.00025359,2]
[313850238,1707753038825,-500.0,0.00025359,2]
[313850239,1707753038834,-500.0,0.00025359,2]
[313850240,1707753038843,-500.0,0.00025359,2]
[313850241,1707753038852,-500.0,0.00025359,2]
[313850242,1707753038864,-500.0,0.00025359,2]
[313850243,1707753038874,-500.0,0.00025359,2]
[313850244,1707753038883,-901.7621394,0.0002536,2]
[313850245,1707753038893,-681.2910634,0.0002536,2]
[313850246,1707753038902,-923.52072391,0.00025361,2]
[313850247,1707753038912,-24450.85562372,0.00025362,2]
[313850248,1707753038921,-200.0,0.00025364,2]
[313850249,1707753038930,-512.06274968,0.00025364,2]
[313850250,1707753038940,-500.0,0.00025366,2]
[313850251,1707753038949,-45.14873602,0.00025366,2]
[313850252,1707753038962,-1507.82126398,0.00025366,2]
[313850253,1707753038972,-500.0,0.00025366,2]
[313850254,1707753038981,-500.0,0.00025366,2]
[313850255,1707753038991,-500.0,0.00025366,2]
[313850256,1707753039000,-561.33,0.00025366,2]
[313850257,1707753039010,-500.0,0.00025366,2]
[313850258,1707753039021,-500.0,0.00025366,2]
[313850259,1707753039031,-403.54873602,0.00025366,2]
[313850260,1707753039043,-96.45126398,0.00025366,2]
[313850261,1707753039052,-500.0,0.00025366,2]
[313850262,1707753039062,-298.281,0.00025366,2]
[313850263,1707753039070,-281.86782653,0.00025367,2]
[313850264,1707753039103,-1173.36729837,0.00025367,2]
[313850265,1707753039123,-833.5748193,0.00025367,2]
[313850269,1707753040489,-255.913186,0.00025366,2]
[313850271,1707753040685,-244.086814,0.00025366,2]
[313850272,1707753040697,-32952.61780919,0.00025367,2]
[313850273,1707753040715,-9975.1104,0.00025367,2]
[313850274,1707753041626,-901.42,0.00025367,2]
[313850275,1707753041638,-1123.71911066,0.00025367,2]
[313850276,1707753041649,-9936.0,0.00025367,2]
[313850277,1707753041661,-8330.32465495,0.00025367,2]
[313850278,1707753041673,-605.59710235,0.00025367,2]
[313850279,1707753041698,-1022.60063722,0.00025367,2]
[313850280,1707753041715,-271254.08817323,0.00025367,2]
[313850281,1707753041726,-500.0,0.00025367,2]
[313850282,1707753041736,-500.0,0.00025367,2]
[313850283,1707753041747,-500.0,0.00025367,2]
[313850284,1707753041756,-500.0,0.00025367,2]
[313850285,1707753041767,-500.0,0.00025367,2]
[313850286,1707753041778,-24597.1906587,0.00025367,2]
[313850288,1707753041789,-500.0,0.00025367,2]
[313850290,1707753041798,-500.0,0.00025367,2]
[313850291,1707753041808,-301.26612127,0.00025367,2]
[313850292,1707753041818,-500.0,0.00025367,2]
[313850293,1707753041828,-500.0,0.00025367,2]
[313850294,1707753041838,-500.0,0.00025367,2]
[313850295,1707753041848,-500.0,0.00025367,2]
[313850296,1707753041858,-500.0,0.00025367,2]
[313850297,1707753041868,-1135.71,0.00025367,2]
[313850298,1707753041878,-500.0,0.00025367,2]
[313850299,1707753041888,-833.33,0.00025367,2]
[313850300,1707753041897,-500.0,0.00025367,2]
[313850301,1707753041907,-500.0,0.00025367,2]
[313850302,1707753041916,-500.0,0.00025367,2]
[313850303,1707753041926,-252.82,0.00025367,2]
[313850304,1707753041936,-500.0,0.00025367,2]
[313850306,1707753041945,-500.0,0.00025367,2]
[313850308,1707753041955,-500.0,0.00025367,2]
[313850310,1707753041964,-500.0,0.00025367,2]
[313850312,1707753041974,-500.0,0.00025367,2]
[313850314,1707753041983,-500.0,0.00025367,2]
[313850316,1707753041993,-263.2924584,0.00025367,2]
[313850318,1707753042003,-500.0,0.00025367,2]
[313850320,1707753042012,-500.0,0.00025367,2]
[313850323,1707753042023,-500.0,0.00025367,2]
[313850325,1707753042033,-559.55915901,0.00025367,2]
[313850327,1707753042042,-500.0,0.00025367,2]
[313850329,1707753042052,-1089.49,0.00025367,2]
[313850331,1707753042061,-500.0,0.00025367,2]
[313850333,1707753042070,-224.28307785,0.00025367,2]
[313850335,1707753042080,-629.08015795,0.00025367,2]
[313850337,1707753042089,-832.0,0.00025367,2]
[313850339,1707753042098,-500.0,0.00025367,2]
[313850341,1707753042108,-556.77574441,0.00025367,2]
[313850343,1707753042117,-1429.47,0.00025367,2]
[313850345,1707753042129,-352.71970712,0.00025367,2]
[313850348,1707753042156,-169.50029288,0.00025367,2]
[313850350,1707753042165,-500.0,0.00025367,2]
[313850352,1707753042173,-500.0,0.00025367,2]
[313850354,1707753042183,-121.63173226,0.00025367,2]
[313850358,1707753042207,-378.36826774,0.00025367,2]
[313850360,1707753042216,-88.41912954,0.00025367,2]
[313850418,1707753042950,-500.0,0.00025366,2]
[313850419,1707753042962,-411.58087046,0.00025367,2]
[313850420,1707753042973,-500.0,0.00025367,2]
[313850421,1707753042984,-527.44,0.00025535,2]
[313850422,1707753042994,-500.0,0.00025535,2]
[313850423,1707753043007,-241.4123249,0.00025535,2]
[313850424,1707753043039,-258.5876751,0.00025535,2]
[313850425,1707753043052,-500.0,0.00025535,2]
[313850426,1707753043063,-1025.13,0.00025535,2]
[313850427,1707753043075,-500.0,0.00025535,2]
[313850429,1707753043087,-540.32,0.00025535,2]
[313850431,1707753043098,-836.01,0.00025535,2]
[313850433,1707753043109,-500.0,0.00025535,2]
[313850434,1707753043121,-701.7,0.00025535,2]
[313850435,1707753043131,-406.43,0.00025535,2]
[313850436,1707753043142,-500.0,0.00025535,2]
[313850437,1707753043154,-220.86,0.00025627,2]
[313850438,1707753043165,-500.0,0.00025633,2]
[313850439,1707753043176,-500.0,0.00025633,2]
[313850440,1707753043185,-500.0,0.00025633,2]
[313850441,1707753043195,-500.0,0.00025633,2]
[313850442,1707753043205,-500.0,0.00025633,2]
[313850443,1707753043219,-500.0,0.00025633,2]
[313850444,1707753043230,-500.0,0.00025633,2]
[313850445,1707753043241,-500.0,0.00025633,2]
[313850446,1707753043251,-210.62,0.0002564,2]
[313850447,1707753043262,-1552.97,0.0002564,2]
[313850448,1707753043277,-355.42,0.0002564,2]
[313850450,1707753043288,-500.0,0.0002564,2]
[313850452,1707753043299,-500.0,0.0002564,2]
[313850455,1707753043310,-561.33,0.0002564,2]
[313850457,1707753043321,-500.0,0.0002564,2]
[313850459,1707753043332,-500.0,0.0002564,2]
[313850461,1707753043343,-500.0,0.0002564,2]
[313850463,1707753043355,-500.0,0.0002564,2]
[313850465,1707753043366,-500.0,0.0002564,2]
[313850467,1707753043378,-303.7,0.00025641,2]
[313850469,1707753043388,-500.0,0.00025641,2]
[313850470,1707753043398,-500.0,0.00025641,2]
[313850471,1707753043408,-500.0,0.00025641,2]
[313850472,1707753043418,-500.0,0.00025641,2]
[313850473,1707753043430,-195.43,0.00025641,2]
[313850474,1707753043443,-500.0,0.00025641,2]
[313850475,1707753043454,-500.0,0.00025641,2]
[313850476,1707753043465,-500.0,0.00025641,2]
[313850477,1707753043476,-500.0,0.00025641,2]
[313850478,1707753043488,-1135.71,0.00025641,2]
[313850479,1707753043502,-139.87196704,0.00025641,2]
[313850480,1707753043518,-360.12803296,0.00025641,2]
[313850481,1707753043530,-833.33,0.00025641,2]
[313850482,1707753043542,-500.0,0.00025641,2]
[313850483,1707753043553,-500.0,0.00025641,2]
[313850484,1707753043564,-500.0,0.00025641,2]
[313850485,1707753043577,-500.0,0.00025641,2]
[313850486,1707753043588,-500.0,0.00025641,2]
[313850487,1707753043599,-500.0,0.00025641,2]
[313850488,1707753043611,-43.41655385,0.00025641,2]
[313850489,1707753043626,-456.58344615,0.00025641,2]
[313850490,1707753043638,-272.13,0.00025641,2]
[313850491,1707753043648,-223.96,0.00025641,2]
[313850492,1707753043661,-500.0,0.00025641,2]
[313850493,1707753043673,-1089.49,0.00025641,2]
[313850494,1707753043688,-500.0,0.00025641,2]
[313850495,1707753043700,-832.0,0.00025641,2]
[313850496,1707753043711,-1429.47,0.00025641,2]
[313850497,1707753043725,-522.22,0.00025641,2]
[313850498,1707753043738,-500.0,0.00025641,2]
[313850499,1707753043749,-449.6,0.00025641,2]
[313850500,1707753043760,-500.0,0.00025641,2]
[313850501,1707753043772,-500.0,0.00025641,2]
[313850502,1707753043782,-436.0,0.000257,2]
[313850503,1707753043791,-527.44,0.00025809,2]
[313850504,1707753043801,-500.0,0.00025809,2]
[313850505,1707753043812,-415.55,0.00025809,2]
[313850506,1707753043822,-500.0,0.00025809,2]
[313850507,1707753043832,-1025.13,0.00025809,2]
[313850508,1707753043843,-500.0,0.00025809,2]
[313850509,1707753043853,-540.32,0.00025809,2]
[313850510,1707753043864,-836.01,0.00025809,2]
[313850511,1707753043875,-500.0,0.00025809,2]
[313850512,1707753043886,-701.7,0.00025809,2]
[313850513,1707753043896,-500.0,0.00025809,2]
[313850514,1707753043909,-500.0,0.00025907,2]
[313850515,1707753043920,-500.0,0.00025907,2]
[313850516,1707753043931,-500.0,0.00025907,2]
[313850517,1707753043944,-500.0,0.00025907,2]
[313850518,1707753043954,-500.0,0.00025907,2]
[313850519,1707753043966,-500.0,0.00025907,2]
[313850520,1707753043976,-172.62996718,0.00025907,2]
[313850521,1707753043996,-5.41003282,0.00025907,2]
[313850522,1707753044007,-500.0,0.00025907,2]
[313850523,1707753044018,-1552.97,0.00025914,2]
[313850524,1707753044033,-363.21996718,0.00025914,2]
[313850525,1707753044054,-136.78003282,0.00025914,2]
[313850526,1707753044065,-500.0,0.00025914,2]
[313850527,1707753044075,-561.33,0.00025914,2]
[313850528,1707753044087,-292.64996718,0.00025914,2]
[313850529,1707753044118,-500.0,0.00025261,2]
[313850530,1707753044128,-207.35003282,0.00025914,2]
[313850531,1707753044141,-500.0,0.00025914,2]
[313850532,1707753044152,-500.0,0.00025914,2]
[313850533,1707753044165,-500.0,0.00025914,2]
[313850534,1707753044176,-500.0,0.00025914,2]
[313850535,1707753044187,-500.0,0.00025915,2]
[313850536,1707753044199,-500.0,0.00025915,2]
[313850537,1707753044210,-500.0,0.00025915,2]
[313850538,1707753044221,-500.0,0.00025915,2]
[313850539,1707753044232,-500.0,0.00025915,2]
[313850540,1707753044242,-5.15774389,0.00025915,2]
[313850541,1707753044258,-284.82706537,0.00025915,2]
[313850542,1707753044273,-210.01519074,0.00025915,2]
[313850544,1707753044284,-500.0,0.00025915,2]
[313850545,1707753044295,-500.0,0.00025915,2]
[313850546,1707753044306,-1135.71,0.00025915,2]
[313850547,1707753044317,-500.0,0.00025915,2]
[313850548,1707753044328,-833.33,0.00025915,2]
[313850549,1707753044339,-500.0,0.00025915,2]
[313850550,1707753044349,-500.0,0.00025915,2]
[313850551,1707753044360,-500.0,0.00025915,2]
[313850552,1707753044371,-500.0,0.00025915,2]
[313850553,1707753044382,-500.0,0.00025915,2]
[313850554,1707753044392,-500.0,0.00025915,2]
[313850555,1707753044403,-500.0,0.00025915,2]
[313850556,1707753044413,-500.0,0.00025915,2]
[313850557,1707753044424,-1089.49,0.00025915,2]
[313850558,1707753044435,-500.0,0.00025915,2]
[313850559,1707753044446,-832.0,0.00025915,2]
[313850560,1707753044456,-1429.47,0.00025915,2]
[313850561,1707753044467,-522.22,0.00025915,2]
[313850562,1707753044477,-500.0,0.00025915,2]
[313850563,1707753044489,-500.0,0.00025915,2]
[313850564,1707753044504,-500.0,0.00025915,2]
[313850565,1707753044515,-20000.0,0.00026,2]
[313850566,1707753044527,-1000.0,0.00026,2]
[313850567,1707753044538,-150.0,0.00026076,2]
[313850568,1707753044549,-527.44,0.00026083,2]
[313850569,1707753044559,-500.0,0.00026083,2]
[313850570,1707753044569,-500.0,0.00026083,2]
[313850571,1707753044579,-1025.13,0.00026083,2]
[313850572,1707753044590,-500.0,0.00026083,2]
[313850573,1707753044600,-540.32,0.00026083,2]
[313850574,1707753044610,-836.01,0.00026083,2]
[313850575,1707753044620,-232.7853528,0.00026083,2]
[313850576,1707753044631,-701.7,0.00026083,2]
[313850577,1707753044641,-500.0,0.00026083,2]
[313850578,1707753044652,-5000.0,0.00026089,2]
[313850579,1707753044664,-500.0,0.00026181,2]
[313850580,1707753044676,-500.0,0.00026181,2]
[313850581,1707753044687,-500.0,0.00026181,2]
[313850582,1707753044698,-500.0,0.00026181,2]
[313850583,1707753044709,-500.0,0.00026181,2]
[313850584,1707753044719,-500.0,0.00026181,2]
[313850585,1707753044729,-500.0,0.00026181,2]
[313850586,1707753044740,-1552.97,0.00026188,2]
[313850587,1707753044752,-500.0,0.00026188,2]
[313850588,1707753044762,-500.0,0.00026188,2]
[313850589,1707753044774,-561.33,0.00026188,2]
[313850590,1707753044784,-500.0,0.00026188,2]
[313850591,1707753044794,-500.0,0.00026188,2]
[313850592,1707753044805,-197.66971644,0.00026188,2]
[313850593,1707753044815,-254.91,0.00026188,2]
[313850594,1707753044825,-500.0,0.00026188,2]
[313850595,1707753044835,-500.0,0.00026189,2]
[313850596,1707753044845,-500.0,0.00026189,2]
[313850597,1707753044855,-500.0,0.00026189,2]
[313850598,1707753044866,-500.0,0.00026189,2]
[313850599,1707753044876,-500.0,0.00026189,2]
[313850600,1707753044886,-500.0,0.00026189,2]
[313850601,1707753044896,-500.0,0.00026189,2]
[313850602,1707753044907,-458.78707076,0.00026189,2]
[313850603,1707753044917,-1135.71,0.00026189,2]
[313850604,1707753044927,-500.0,0.00026189,2]
[313850605,1707753044938,-833.33,0.00026189,2]
[313850606,1707753044948,-500.0,0.00026189,2]
[313850607,1707753044958,-500.0,0.00026189,2]
[313850608,1707753044979,-500.0,0.00026189,2]
[313850609,1707753044991,-500.0,0.00026189,2]
[313850610,1707753045002,-500.0,0.00026189,2]
[313850611,1707753045013,-500.0,0.00026189,2]
[313850612,1707753045026,-500.0,0.00026189,2]
[313850613,1707753045037,-500.0,0.00026189,2]
[313850614,1707753045048,-1089.49,0.00026189,2]
[313850615,1707753045059,-500.0,0.00026189,2]
[313850616,1707753045070,-832.0,0.00026189,2]
[313850617,1707753045081,-1429.47,0.00026189,2]
[313850618,1707753045091,-522.22,0.00026189,2]
[313850619,1707753045103,-500.0,0.00026189,2]
[313850620,1707753045114,-500.0,0.00026189,2]
[313850621,1707753045124,-500.0,0.00026189,2]
[313850622,1707753045134,-527.44,0.00026357,2]
[313850623,1707753045145,-500.0,0.00026357,2]
[313850624,1707753045156,-500.0,0.00026357,2]